bitfinex/quotes_ETHUSD_20250222
["timestamp","ask_amount","ask_price","bid_price","bid_amount"]
[1740246979423,3.57602,2796.4,2796.3,7.305]
[1740246979743,3.5757,2796.7,2796.3,7.305]
[1740246979913,7.15145,2796.7,2796.3,7.305]
[1740246980416,3.57583,2796.6,2796.3,7.305]
[1740246981229,3.57575,2796.7,2796.4,0.11704587]
[1740246981414,4.62080968,2796.7,2796.4,0.11704587]
[1740246981616,3.57579,2796.6,2796.4,0.11704587]
[1740246981816,4.33559,2796.5,2796.4,0.11704587]
[1740246983447,7.33559,2796.5,2796.4,0.11704587]
[1740246983619,7.33559,2796.5,2796.3,7.305]
[1740246983950,4.63951068,2796.4,2796.3,7.305]
[1740246984437,4.63951068,2796.4,2795.9,0.791]
[1740246984753,3.57624,2796.3,2795.9,0.791]
[1740246985632,3.57648,2796.1,2795.4,4.28819917]
[1740246985833,3.5766,2796.0,2795.5,3.57715]
[1740246986033,3.57648,2796.1,2795.4,5.33893909]
[1740246986340,3.57648,2796.1,2795.5,3.57708]
[1740246986853,3.5767,2795.9,2795.4,5.33893909]
[1740246987023,3.5767,2795.9,2795.4,5.33890909]
[1740246987453,3.57648,2796.1,2795.6,3.57704]
[1740246987662,3.57648,2796.1,2795.6,3.57698]
[1740246988458,3.7861,2796.2,2795.7,3.5769]
[1740246988657,7.36239,2796.2,2795.7,0.8292]
[1740246989160,3.57642,2796.1,2795.7,0.8292]
[1740246989561,3.7861,2796.2,2795.7,0.8292]
[1740246989765,3.57644,2796.1,2795.7,0.8292]
[1740246990257,3.0,2796.2,2795.7,4.96222609]
[1740246990474,3.0,2796.2,2795.8,3.57672]
[1740246990684,6.57636,2796.2,2795.7,4.96230609]
[1740246991544,0.809,2796.1,2795.7,4.13310609]
[1740246991772,4.38542,2796.1,2795.6,3.57698]
[1740246992263,4.38542,2796.1,2795.6,8.96698]
[1740246992643,3.57642,2796.1,2795.6,8.96698]
[1740246993550,3.57657,2796.0,2795.6,5.39]
[1740246993758,3.57653,2796.0,2795.6,5.39]
[1740246995247,3.57663,2796.0,2795.6,5.39]
[1740246995447,7.15326,2796.0,2795.6,5.39]
[1740246995772,3.57668,2795.9,2795.6,5.39]
[1740246996346,3.5766,2796.0,2795.7,0.11907124]
[1740246996560,3.57666,2795.9,2795.7,0.11907124]
[1740246996761,3.5766,2796.0,2795.7,0.11907124]
[1740246996965,7.15323,2796.0,2795.7,0.11907124]
[1740246997139,3.57678,2795.9,2795.7,0.11907124]
[1740246998064,3.57673,2795.9,2795.7,0.11907124]
[1740246998856,7.15348,2795.9,2795.7,0.11907124]
[1740246999058,3.57673,2795.9,2795.7,0.11907124]
[1740247000266,7.15349,2795.9,2795.7,0.11907124]
[1740247000470,3.57679,2795.8,2795.7,0.11907124]
[1740247001568,3.57673,2795.9,2795.7,0.11907124]
[1740247001871,3.57679,2795.8,2795.7,0.11907124]
[1740247003556,5.095042,2795.8,2795.7,0.11907124]
[1740247004445,3.57737,2795.4,2795.1,0.8003]
[1740247004850,3.57745,2795.3,2795.1,0.8003]
[1740247005385,3.57745,2795.3,2795.0,0.8003]
[1740247005534,3.57722,2795.5,2795.0,0.8003]
[1740247005740,3.57733,2795.4,2795.0,0.8003]
[1740247006569,3.57745,2795.3,2795.0,0.8003]
[1740247007263,3.5777,2795.1,2794.5,0.7604]
[1740247007460,3.5777,2795.1,2794.4,7.307]
[1740247007461,3.57845,2794.5,2794.4,7.307]
[1740247007660,0.715467,2795.3,2794.4,7.307]
[1740247007861,3.57751,2795.3,2794.7,0.7604]
[1740247008067,3.57751,2795.3,2794.7,4.33852]
[1740247008265,3.57751,2795.3,2794.7,4.33858]
[1740247008477,3.57789,2795.0,2794.7,0.7604]
[1740247008772,3.57814,2794.8,2794.5,0.7604]
[1740247008983,3.5782,2794.7,2794.4,13.41114495]
[1740247009297,3.57836,2794.6,2794.4,8.02114495]
[1740247009595,7.98533,2794.8,2794.4,8.02114495]
[1740247009801,4.40714,2794.8,2794.4,8.02114495]
[1740247010299,3.57827,2794.7,2794.4,8.02114495]
[1740247010461,4.40714,2794.8,2794.4,8.02114495]
[1740247010798,0.8245,2795.1,2794.6,3.57821]
[1740247010999,0.8245,2795.1,2794.7,0.782]
[1740247011197,3.29931683,2794.9,2794.4,8.02114495]
[1740247011387,7.98074,2794.8,2794.4,7.307]
[1740247011571,3.57823,2794.7,2794.4,7.307]
[1740247013399,3.85338981,2794.7,2794.4,7.307]
[1740247013770,3.57823,2794.7,2794.4,7.307]
[1740247014170,7.15651,2794.7,2794.4,7.307]
[1740247014479,3.57823,2794.7,2794.4,7.307]
[1740247015003,0.8245,2794.8,2794.4,8.0842]
[1740247015164,0.7693,2795.3,2794.8,3.578]
[1740247015367,0.7693,2795.3,2794.8,0.7772]
[1740247015368,4.34679,2795.3,2794.8,0.7772]
[1740247016493,3.57756,2795.2,2794.8,0.7772]
[1740247016691,3.57777,2795.1,2794.8,0.7772]
[1740247016892,3.57783,2795.0,2794.6,0.7772]
[1740247019504,3.57803,2794.9,2794.6,0.7772]
[1740247019808,3.5782,2794.7,2794.5,5.39]
[1740247020103,0.715586,2794.9,2794.4,7.307]
[1740247020104,0.7693,2794.6,2794.4,7.307]
[1740247020310,0.7693,2794.9,2794.4,7.307]
[1740247020513,0.7693,2794.9,2794.4,10.88555]
[1740247020715,3.57808,2794.8,2794.5,0.7772]
[1740247020920,3.57808,2794.8,2794.4,7.307]
[1740247020921,3.57845,2794.5,2794.4,7.307]
[1740247021119,0.792528,2794.8,2794.4,7.307]
[1740247021120,4.34751,2794.7,2794.4,7.307]
[1740247021327,3.57835,2794.6,2794.4,7.307]
[1740247021675,3.57845,2794.5,2794.4,7.307]
[1740247023031,4.34775,2794.5,2794.4,7.307]
[1740247023333,3.5791,2794.0,2793.6,6.1672]
[1740247023485,4.34819,2794.2,2793.6,4.3568]
[1740247023809,4.34814,2794.2,2793.7,3.70221561]
[1740247024402,3.57925,2793.9,2793.7,0.12286561]
[1740247024610,3.57935,2793.8,2793.7,0.12286561]
[1740247024992,3.57962,2793.6,2793.2,1.49498291]
[1740247025317,3.57962,2793.6,2793.2,0.7772]
[1740247025515,3.57948,2793.7,2793.0,7.309]
[1740247025694,0.7693,2793.8,2793.5,3.57971]
[1740247025883,4.34866,2793.8,2793.3,3.57989]
[1740247026077,3.5797,2793.6,2793.0,10.88935]
[1740247026274,3.57948,2793.7,2793.1,0.12347282]
[1740247026475,0.7693,2793.8,2793.1,3.70359282]
[1740247026702,3.7693,2793.8,2793.3,3.57996]
[1740247026905,4.34866,2793.8,2793.3,3.57996]
[1740247027090,4.34866,2793.8,2793.4,0.12370647]
[1740247027293,8.141455,2793.8,2793.4,0.12370647]
[1740247027493,8.141455,2793.8,2793.2,3.5801]
[1740247027680,8.141455,2793.8,2793.3,0.12380767]
[1740247028013,3.57961,2793.6,2793.3,0.12380767]
[1740247028212,3.57982,2793.5,2793.3,0.12380767]
[1740247028412,3.57982,2793.5,2793.0,7.309]
[1740247028617,3.57982,2793.5,2793.4,0.12370647]
[1740247028784,3.58,2793.3,2793.0,7.309]
[1740247028984,3.58025,2793.1,2793.0,7.309]
[1740247029185,3.58,2793.3,2793.0,7.309]
[1740247029718,3.58025,2793.1,2793.0,7.309]
[1740247030284,7.68186683,2793.4,2793.0,7.309]
[1740247030483,0.70805847,2793.3,2793.0,7.309]
[1740247030716,4.38255,2793.4,2793.0,7.309]
[1740247031684,3.58,2793.3,2793.0,7.309]
[1740247031885,0.8026,2793.4,2793.0,7.309]
[1740247032194,0.8026,2793.4,2793.0,10.88937]
[1740247032377,0.8026,2793.4,2793.0,7.309]
[1740247032584,3.58019,2793.2,2793.0,7.309]
[1740247033126,1.4865115,2793.4,2793.0,7.309]
[1740247033309,1.0704533,2793.4,2793.0,10.88936]
[1740247033615,4.6503233,2793.4,2793.0,7.309]
[1740247033804,1.0704533,2793.4,2793.0,7.309]
[1740247033999,1.0704533,2793.4,2793.0,10.88936]
[1740247035413,4.6503333,2793.4,2793.0,7.309]
[1740247036305,3.5802,2793.2,2793.0,7.309]
[1740247036700,1.0704533,2793.4,2793.0,7.309]
[1740247037019,3.58006,2793.3,2793.0,7.309]
[1740247039221,3.58025,2793.1,2793.0,7.309]
[1740247039418,1.15882853,2793.3,2792.3,0.45709645]
[1740247039419,4.34267,2793.0,2792.3,4.38933]
[1740247039791,7.92314,2793.0,2792.4,3.58108]
[1740247040107,3.58058,2792.9,2792.4,3.58108]
[1740247040308,3.58064,2792.8,2792.3,0.8081]
[1740247040516,3.58083,2792.7,2792.2,0.72833289]
[1740247040711,3.58097,2792.6,2792.2,0.72833289]
[1740247041327,3.58097,2792.6,2792.3,0.12516989]
[1740247042189,0.55,2792.9,2792.3,0.12516989]
[1740247042417,3.58114,2792.4,2792.3,0.12516989]
[1740247043091,3.58146,2792.2,2791.9,7.313]
[1740247043341,3.58146,2792.2,2792.0,0.12547377]
[1740247043543,3.58128,2792.3,2792.0,0.12547377]
[1740247043736,3.58141,2792.2,2792.0,0.12547377]
[1740247043906,3.58153,2792.1,2792.0,0.12547377]
[1740247044103,3.58141,2792.2,2792.0,0.12547377]
[1740247044309,3.58153,2792.1,2792.0,0.12547377]
[1740247044895,4.34383,2792.1,2792.0,0.12547377]
[1740247045645,0.7623,2792.1,2792.0,0.12547377]
[1740247045937,0.26426752,2792.3,2792.0,0.12547377]
[1740247046125,3.0,2792.2,2792.0,0.12547377]
[1740247046292,3.26426752,2792.3,2792.0,0.12547377]
[1740247046499,6.84565752,2792.3,2792.0,0.12547377]
[1740247046838,3.26426752,2792.3,2792.0,0.12547377]
[1740247047037,3.58141,2792.2,2792.0,0.12547377]
[1740247047228,3.26426752,2792.3,2792.0,0.12547377]
[1740247048044,3.58142,2792.2,2792.0,0.12547377]
[1740247049506,7.16292,2792.2,2792.0,0.12547377]
[1740247049829,3.58153,2792.1,2792.0,0.12547377]
[1740247051043,0.82249875,2792.2,2792.0,0.12547377]
[1740247051220,3.0,2792.2,2792.0,0.12547377]
[1740247051421,6.58141,2792.2,2792.0,0.12547377]
[1740247051730,3.58153,2792.1,2792.0,0.12547377]
[1740247056615,3.58153,2792.1,2791.5,4.39864]
[1740247056817,3.58207,2791.7,2791.5,0.8164]
[1740247057021,3.58217,2791.6,2791.3,5.39]
[1740247057828,3.58231,2791.5,2791.3,5.39]
[1740247058029,3.58231,2791.5,2791.0,7.1657]
[1740247058357,3.58231,2791.5,2791.1,3.58281]
[1740247058657,3.58231,2791.5,2791.1,0.53314932]
[1740247059252,3.58231,2791.5,2791.1,0.64528565]
[1740247059610,7.16471,2791.5,2791.1,0.64528565]
[1740247060061,3.58245,2791.4,2791.1,0.11213633]
[1740247060229,4.41184,2791.7,2791.1,0.11213633]
[1740247060406,3.58218,2791.6,2791.1,3.69488633]
[1740247060608,4.41184,2791.7,2791.1,0.11213633]
[1740247060818,1.270884,2791.7,2790.7,3.58333]
[1740247061112,1.270884,2791.7,2790.6,3.58336]
[1740247061113,3.58274,2791.2,2790.6,3.58336]
[1740247061311,3.58274,2791.2,2790.7,3.58332]
[1740247061511,7.16552,2791.2,2790.7,3.58332]
[1740247061713,3.58274,2791.2,2790.8,0.33336751]
[1740247063044,4.41221,2791.4,2790.8,3.91652751]
[1740247063349,0.8297,2791.4,2790.6,0.42661084]
[1740247063644,0.8297,2791.4,2791.0,3.58282]
[1740247063853,3.8297,2791.4,2791.0,3.58282]
[1740247064034,3.8297,2791.4,2790.9,3.58307]
[1740247064351,3.8297,2791.4,2790.9,7.16603]
[1740247064549,0.8297,2791.4,2790.9,3.58296]
[1740247064911,0.8297,2791.4,2791.0,3.58289]
[1740247065153,3.8297,2791.4,2791.0,3.58289]
[1740247065941,7.41223,2791.4,2790.9,3.58296]
[1740247066519,3.8297,2791.4,2791.0,3.5829]
[1740247066849,3.8297,2791.4,2790.9,3.58296]
[1740247067030,0.8297,2791.4,2791.1,3.58279]
[1740247067228,0.8297,2791.4,2790.9,3.58299]
[1740247067553,3.8297,2791.4,2791.0,3.58292]
[1740247069022,3.58257,2791.3,2790.8,4.40619]
[1740247071053,3.58257,2791.3,2790.8,0.823]
[1740247071258,3.58279,2791.2,2790.9,0.12563464]
[1740247071624,3.58279,2791.2,2790.7,3.58325]
[1740247072125,3.58279,2791.2,2790.8,0.12576191]
[1740247072325,3.58279,2791.2,2790.7,3.58325]
[1740247072527,3.58279,2791.2,2790.8,3.82112551]
[1740247072787,3.58279,2791.2,2790.8,0.23792551]
[1740247073951,3.58295,2791.0,2790.8,0.12576838]
[1740247074352,3.58291,2791.1,2790.6,3.5834]
[1740247074553,3.58291,2791.1,2790.9,0.12567994]
[1740247074758,6.58268,2791.2,2790.7,3.58322]
[1740247074959,6.58268,2791.2,2791.0,0.12557856]
[1740247075260,7.68217,2791.2,2790.7,3.69537686]
[1740247075449,7.68217,2791.2,2791.1,0.12547718]
[1740247075619,7.68217,2791.2,2790.7,3.69537686]
[1740247075825,7.68217,2791.2,2791.1,0.12547718]
[1740247076047,7.68217,2791.2,2790.7,3.69537686]
[1740247076244,7.68217,2791.2,2791.1,0.12547718]
[1740247076729,1.09949,2791.2,2790.8,3.58313]
[1740247076962,6.58257,2791.3,2790.9,0.12567994]
[1740247077948,3.0,2791.3,2790.9,3.70872994]
[1740247078770,6.58256,2791.3,2790.9,0.12567994]
[1740247079164,6.58256,2791.3,2790.7,3.58321]
[1740247079460,6.58256,2791.3,2791.0,0.12563031]
[1740247079623,7.682037,2791.3,2790.7,3.58321]
[1740247079829,7.682037,2791.3,2791.1,0.12552893]
[1740247080030,7.682037,2791.3,2790.7,3.58321]
[1740247080366,3.58277,2791.2,2790.6,0.42762917]
[1740247080543,3.58277,2791.2,2790.8,0.12583307]
[1740247080743,3.58277,2791.2,2790.7,3.70924447]
[1740247080939,3.8297,2791.4,2790.9,0.12573169]
[1740247081150,3.8297,2791.4,2790.9,3.583]
[1740247081357,3.8297,2791.4,2791.0,0.12563031]
[1740247081559,0.8297,2791.4,2791.0,0.12563031]
[1740247081861,3.0,2791.2,2791.0,0.12563031]
[1740247082368,6.58269,2791.2,2791.1,0.1255354]
[1740247082668,3.0,2791.2,2791.1,0.1255354]
[1740247082847,3.0,2791.2,2790.8,3.58319]
[1740247083047,3.0,2791.2,2791.1,0.12552893]
[1740247083242,3.0,2791.2,2790.9,3.58305]
[1740247083444,3.0,2791.2,2791.1,0.12552893]
[1740247083647,3.0,2791.2,2791.0,0.12563031]
[1740247083865,3.0,2791.2,2791.1,0.12552893]
[1740247084068,0.8297,2791.4,2791.1,0.12552893]
[1740247084271,3.58262,2791.3,2790.7,4.36825]
[1740247084572,6.58271,2791.2,2790.7,4.36825]
[1740247084878,6.58271,2791.2,2790.7,4.36823]
[1740247085040,3.0,2791.2,2790.7,3.58323]
[1740247085372,6.58269,2791.2,2790.7,3.58323]
[1740247086238,6.58269,2791.2,2790.8,0.1258266]
[1740247086442,3.0,2791.2,2790.8,0.1258266]
[1740247086775,3.0,2791.2,2790.9,0.12572522]
[1740247089278,6.58272,2791.2,2790.9,0.12572522]
[1740247089773,6.58272,2791.2,2791.0,0.12563678]
[1740247090281,6.58272,2791.2,2790.7,7.16652]
[1740247090478,6.58272,2791.2,2791.1,0.1255354]
[1740247090644,4.099498,2791.2,2790.7,3.58326]
[1740247090844,3.0,2791.2,2791.1,0.1255354]
[1740247091061,6.58268,2791.2,2790.7,3.58326]
[1740247091264,6.58268,2791.2,2791.1,0.1255354]
[1740247091476,6.58268,2791.2,2790.7,7.16651]
[1740247091678,6.58268,2791.2,2791.1,0.1255354]
[1740247091879,6.58268,2791.2,2790.7,7.16651]
[1740247091880,7.682174,2791.2,2790.7,3.58325]
[1740247092058,6.58268,2791.2,2791.1,0.1255354]
[1740247092270,6.58268,2791.2,2790.8,3.58319]
[1740247092780,6.58268,2791.2,2790.9,0.12576405]
[1740247093483,3.58283,2791.1,2790.9,0.12576405]
[1740247093848,3.58283,2791.1,2790.6,3.58333]
[1740247094082,3.58283,2791.1,2791.0,0.12566267]
[1740247094552,3.58283,2791.1,2790.7,3.58332]
[1740247094748,3.58283,2791.1,2791.0,0.12566267]
[1740247094949,3.58283,2791.1,2791.0,0.12066267]
[1740247095174,3.58283,2791.1,2790.7,0.54100892]
[1740247095384,3.58283,2791.1,2791.0,0.1254841]
[1740247095705,4.599383,2791.1,2790.7,0.54100892]
[1740247095863,4.599383,2791.1,2791.0,0.1254841]
[1740247096179,3.58283,2791.1,2791.0,0.1254841]
[1740247096752,3.58283,2791.1,2790.7,3.58331]
[1740247097086,3.58283,2791.1,2791.0,0.1254841]
[1740247097382,3.58283,2791.1,2790.9,0.72704172]
[1740247097383,3.58294,2791.0,2790.9,0.72704172]
[1740247097588,5.371817,2791.0,2790.5,7.66789683]
[1740247097781,4.35524,2791.0,2790.6,0.60836652]
[1740247097963,0.7723,2791.0,2790.6,4.19180652]
[1740247098472,3.58307,2790.9,2790.6,0.60836652]
[1740247098778,4.35525,2791.0,2790.6,0.60836652]
[1740247098984,4.35525,2791.0,2790.6,0.17945878]
[1740247099289,3.58307,2790.9,2790.6,0.17945878]
[1740247099850,5.449058,2791.0,2790.7,0.11216366]
[1740247100264,9.032098,2791.0,2790.7,0.11216366]
[1740247100686,3.5832,2790.8,2790.7,0.11216366]
[1740247101281,5.449108,2791.0,2790.5,0.42898122]
[1740247101453,3.58317,2790.9,2790.5,0.42898122]
[1740247101848,3.58336,2790.7,2790.4,0.17946865]
[1740247102190,3.58336,2790.7,2790.6,0.11216927]
[1740247102485,7.90566,2790.7,2790.6,0.11216927]
[1740247102832,9.054547,2790.7,2790.6,0.11216927]
[1740247103553,14.294547,2790.7,2790.6,9.27e-06]
[1740247103748,4.35623,2790.3,2789.7,4.56910333]
[1740247104073,0.7723,2790.3,2789.9,3.58423]
[1740247104270,0.7723,2790.8,2790.3,3.58377]
[1740247104473,0.7723,2790.8,2790.3,0.805]
[1740247104676,3.58358,2790.5,2790.4,0.12668788]
[1740247104977,3.58358,2790.5,2789.9,4.38927]
[1740247105172,3.58358,2790.5,2790.4,0.12681736]
[1740247105487,4.600283,2790.5,2789.9,4.38927]
[1740247105780,3.58388,2790.3,2789.8,5.39]
[1740247106088,3.8227,2790.4,2790.0,3.70751246]
[1740247106382,3.8227,2790.6,2790.1,3.70719101]
[1740247106589,3.8227,2790.6,2790.1,0.12320101]
[1740247106897,3.0,2790.4,2790.1,0.12320101]
[1740247107320,3.0,2790.4,2789.9,7.96174]
[1740247107586,3.0,2790.4,2790.0,3.58421]
[1740247107895,3.0,2790.4,2790.0,3.70751246]
[1740247108884,6.5838,2790.4,2790.0,0.12330246]
[1740247109090,3.58393,2790.3,2790.0,0.12330246]
[1740247109294,0.8227,2790.2,2790.0,0.12330246]
[1740247109671,4.40668,2790.2,2789.7,4.37778]
[1740247109867,4.1730765,2790.4,2789.7,4.37778]
[1740247109868,4.1730765,2790.4,2790.1,0.12320101]
[1740247110073,8.5795965,2790.4,2789.8,3.58436]
[1740247110286,6.58384,2790.3,2790.2,0.12309958]
[1740247110482,3.58397,2790.2,2789.8,3.58436]
[1740247111302,3.0,2790.3,2789.8,7.16878]
[1740247111603,3.0,2790.3,2789.9,3.58427]
[1740247111807,4.40642,2790.4,2789.9,3.58427]
[1740247111984,3.0,2790.3,2789.7,0.7932]
[1740247112302,3.58398,2790.2,2789.7,4.3778]
[1740247112467,0.8227,2790.4,2790.0,3.58414]
[1740247112668,3.0,2790.3,2789.8,3.58447]
[1740247112878,3.0,2790.3,2789.9,3.58435]
[1740247113705,3.0,2790.3,2789.9,3.58424]
[1740247113911,3.0,2790.3,2790.0,3.58419]
[1740247114073,4.33574,2790.6,2790.1,0.8013]
[1740247114272,1.709774,2790.6,2789.9,0.8013]
[1740247114572,3.58378,2790.4,2789.9,4.38565]
[1740247116220,3.58378,2790.4,2790.0,0.12330246]
[1740247116777,3.58386,2790.3,2790.0,0.12330246]
[1740247117001,3.58373,2790.4,2790.0,0.12330246]
[1740247117312,3.58385,2790.3,2790.0,0.12330246]
[1740247117608,3.58373,2790.4,2790.0,0.12330246]
[1740247117824,7.16753,2790.4,2790.0,0.12330246]
[1740247118001,3.58384,2790.3,2790.0,0.12330246]
[1740247118510,0.7522,2790.6,2790.0,0.12330246]
[1740247118709,3.58301,2791.0,2790.0,0.12330246]
[1740247118710,3.58301,2791.0,2790.5,3.58346]
[1740247118935,3.58301,2791.0,2790.5,3.58353]
[1740247119130,3.0,2790.9,2790.6,0.12269389]
[1740247119624,7.33514,2791.1,2790.6,3.70613389]
[1740247119811,3.0,2790.9,2790.6,0.12269389]
[1740247120721,3.0,2790.9,2790.4,7.16725]
[1740247120928,3.0,2790.9,2790.4,3.58361]
[1740247121107,3.0,2790.9,2790.5,0.12259512]
[1740247121284,3.0,2790.9,2790.5,3.70610512]
[1740247123619,6.5831,2790.9,2790.5,0.12259512]
[1740247126584,7.56375347,2790.9,2790.5,0.12259512]
[1740247126778,3.98065347,2790.9,2790.5,0.12259512]
[1740247126979,3.58322,2790.8,2790.5,0.12259512]
[1740247128115,3.58322,2790.8,2790.3,4.30651276]
[1740247128321,3.58322,2790.8,2790.6,0.12224833]
[1740247128519,4.69791135,2790.8,2790.3,4.30651276]
[1740247128684,6.58322,2790.8,2790.7,0.12214693]
[1740247128885,6.58322,2790.8,2790.3,4.30651276]
[1740247129377,10.16652,2790.8,2790.3,4.30651276]
[1740247129584,10.16652,2790.8,2790.4,0.12245115]
[1740247129920,6.58322,2790.8,2790.4,0.12245115]
[1740247130117,10.1665,2790.8,2790.4,0.12245115]
[1740247130419,6.58322,2790.8,2790.4,0.12245115]
[1740247131403,3.58351,2790.6,2790.4,0.12245115]
[1740247131608,3.58358,2790.5,2790.4,0.12245115]
[1740247131819,3.58351,2790.6,2790.2,0.8013]
[1740247131983,3.58358,2790.5,2790.4,0.12245115]
[1740247132387,3.58347,2790.6,2790.4,0.12245115]
[1740247132616,3.58347,2790.6,2790.2,0.8013]
[1740247132787,3.58345,2790.6,2790.2,0.8013]
[1740247132980,3.58345,2790.6,2790.5,0.12234974]
[1740247133185,3.58345,2790.6,2790.2,0.8013]
[1740247133922,3.58361,2790.5,2790.3,0.12255258]
[1740247134287,3.58361,2790.5,2790.1,3.58403]
[1740247134489,3.58361,2790.5,2790.4,0.12245115]
[1740247134793,4.37253,2790.3,2790.0,7.322]
[1740247134993,0.7886,2790.3,2790.0,7.322]
[1740247135192,3.58401,2790.2,2790.0,7.322]
[1740247135420,0.7886,2790.3,2790.0,7.322]
[1740247135921,3.58397,2790.2,2790.0,7.322]
[1740247136127,7.16806,2790.2,2790.0,7.322]
[1740247136920,3.5841,2790.1,2790.0,7.322]
[1740247137223,3.58426,2790.0,2789.6,6.1616]
[1740247138200,3.58426,2790.0,2789.6,6.59067488]
[1740247138387,4.379706,2790.2,2789.6,6.59067488]
[1740247138588,3.5841,2790.1,2789.6,10.17533488]
[1740247138798,3.5841,2790.1,2789.7,0.11219752]
[1740247140919,3.5841,2790.1,2789.8,0.11219752]
[1740247141125,3.58423,2790.0,2789.8,0.11219752]
[1740247142318,3.58423,2790.0,2789.6,0.7716]
[1740247142610,7.1681,2790.2,2789.6,4.35628]
[1740247142990,3.58401,2790.2,2789.7,3.58451]
[1740247144227,7.16808,2790.2,2789.7,3.58451]
[1740247144422,0.7886,2790.3,2789.6,0.7716]
[1740247144726,3.58439,2789.9,2789.6,0.7716]
[1740247145520,3.58439,2789.9,2789.8,0.11219688]
[1740247145735,5.058852,2789.9,2789.8,0.11219688]
[1740247146343,5.058852,2789.9,2789.8,0.2356377]
[1740247146638,5.058852,2789.9,2789.8,0.11219688]
[1740247146845,5.058852,2789.9,2789.8,0.12344082]
[1740247147355,7.34161,2790.2,2789.5,0.1442461]
[1740247147534,3.0,2790.0,2789.8,0.12344082]
[1740247147694,3.0,2790.0,2789.6,3.58466]
[1740247147899,3.0,2790.0,2789.9,0.12333936]
[1740247148130,3.0,2790.0,2789.6,3.58466]
[1740247148313,5.24,2790.4,2790.0,3.5841]
[1740247148513,5.24,2790.4,2790.1,3.58409]
[1740247148818,3.0,2790.3,2790.1,3.70722646]
[1740247149015,5.24,2790.4,2790.1,3.70722646]
[1740247149420,5.24,2790.4,2790.1,0.12313646]
[1740247149421,3.58373,2790.4,2790.1,0.12313646]
[1740247150538,3.58348,2790.6,2790.1,0.12313646]
[1740247150539,6.5836,2790.5,2790.1,0.12313646]
[1740247152720,3.58374,2790.4,2790.1,0.12313646]
[1740247154853,3.0,2790.5,2790.1,0.12313646]
[1740247156945,6.58361,2790.5,2790.3,0.7048923]
[1740247157349,6.58361,2790.5,2790.4,0.12337472]
[1740247158117,8.910804,2790.5,2790.4,0.12337472]
[1740247158808,8.910804,2790.5,2789.9,0.17949767]
[1740247158809,3.58395,2790.3,2789.9,0.17949767]
[1740247159008,3.58395,2790.3,2790.2,0.70176697]
[1740247159208,3.58395,2790.3,2789.8,4.34567]
[1740247159932,3.58416,2790.1,2789.8,0.7612]
[1740247160251,7.16834,2790.1,2789.8,0.7612]
[1740247160410,3.58416,2790.1,2789.8,0.7612]
[1740247160611,3.58416,2790.1,2789.9,0.11219494]
[1740247161158,4.34472,2790.0,2789.9,0.11219494]
[1740247162864,3.58442,2789.9,2789.6,7.322]
[1740247164522,3.58457,2789.8,2789.6,7.322]
[1740247165430,3.58461,2789.7,2789.6,7.322]
[1740247167446,7.16888,2789.9,2789.6,7.322]
[1740247167658,3.58452,2789.8,2789.6,7.322]
[1740247168052,3.58442,2789.9,2789.6,7.322]
[1740247168213,3.58435,2789.9,2789.6,7.322]
[1740247168925,7.1688,2789.9,2789.7,0.11220841]
[1740247169352,3.58448,2789.8,2789.7,0.11220841]
[1740247170541,3.58448,2789.8,2789.6,7.322]
[1740247172430,3.58448,2789.8,2789.5,0.1442461]
[1740247176121,3.58448,2789.8,2789.6,0.12394085]
[1740247182367,4.377402,2789.8,2789.6,0.12394085]
[1740247185478,3.58448,2789.8,2789.6,0.12394085]
[1740247185869,3.58448,2789.8,2789.6,0.85589076]
[1740247188967,6.58437,2789.9,2789.6,0.85589076]
[1740247189342,6.58437,2789.9,2789.7,0.11221037]
[1740247189565,6.58437,2789.9,2789.7,0.23603035]
[1740247189729,7.77574502,2789.9,2789.7,0.23603035]
[1740247190770,7.77574502,2789.9,2789.7,0.12381998]
[1740247195533,3.58448,2789.8,2789.7,0.12381998]
[1740247197278,3.58448,2789.8,2789.7,0.23603035]
[1740247200381,3.56828,2789.8,2789.7,0.23603035]
[1740247201081,3.58398,2790.2,2789.7,0.23603035]
[1740247201082,0.8274,2790.3,2789.8,0.781]
[1740247201280,1.43414,2790.3,2789.7,0.23603035]
[1740247201465,3.58448,2789.8,2789.7,0.23603035]
[1740247201846,3.58397,2790.2,2789.7,0.23603035]
[1740247201847,0.8274,2790.2,2789.7,0.23603035]
[1740247202080,3.58399,2790.2,2789.9,0.11221037]
[1740247202280,3.58422,2790.0,2789.9,0.11221037]
[1740247202867,3.0,2790.1,2789.9,0.11221037]
[1740247203350,8.82339,2790.7,2790.0,0.781]
[1740247203351,6.33339888,2790.7,2790.0,0.781]
[1740247203774,4.41159,2790.1,2789.8,0.265]
[1740247203976,3.5843,2790.0,2789.8,0.265]
[1740247204293,3.58419,2790.1,2789.8,0.265]
[1740247204460,3.58391,2790.3,2789.8,0.265]
[1740247204989,3.58417,2790.1,2789.8,0.265]
[1740247205170,3.58435,2789.9,2789.8,0.265]
[1740247205375,3.58422,2790.0,2789.8,0.265]
[1740247205670,3.58395,2790.3,2789.9,0.7667]
[1740247205986,3.584,2790.2,2789.9,0.7667]
[1740247206352,3.58372,2790.4,2789.9,4.98562839]
[1740247206572,4.38121,2790.1,2789.8,0.265]
[1740247206778,3.58432,2790.0,2789.8,0.265]
[1740247206987,3.58435,2789.9,2789.8,0.265]
[1740247207372,3.58413,2790.1,2789.8,0.265]
[1740247208083,4.38101,2790.3,2789.8,0.265]
[1740247208584,4.38101,2790.3,2789.9,2.37274395]
[1740247208789,7.96445,2790.5,2789.9,5.95709395]
[1740247209090,3.5839,2790.3,2789.9,2.37274395]